[Event "Marmaris Karya-19 GM-May 2022"]
[Site "Icmeler-Marmaris"]
[Date "2022.05.15"]
[Round "4.1"]
[White "Maghalashvili, Davit"]
[Black "Caglar, Sila"]
[Result "1-0"]
[ECO "B15"]
[WhiteElo "2456"]
[BlackElo "2133"]
[Annotator "TA"]
[PlyCount "103"]
[EventDate "2022.05.15"]
[EventType "schev"]
[EventCountry "TUR"]
[SourceTitle "playchess.com"]
[Source "ChessBase"]
[SourceQuality "1"]
[TimeControl "5400+30"]

{[%evp 15,103,0,20,0,0,0,0,0,0,-20,-16,-16,-8,-8,-8,-8,-5,-10,0,0,0,7,6,10,0,0,0,0,0,0,0,0,16,4,19,23,17,25,19,25,60,30,28,33,37,38,33,23,46,19,16,29,20,10,39,32,46,22,38,52,132,70,198,210,236,235,175,137,1123,1102,1270,1270,1236,1208,2094,2333,5272,5265,5065,3660,5065,2243,29984,29985,29986,29987,29987,29987,29987,29987]} 1. e4 {[%emt 0:05:00]} c6 {[%emt 0:01:00]} 2. d4 {[%emt 0:01:30]} d5 {[%emt 0:00:00]} 3. Nc3 {[%emt 0:00:00]} dxe4 {[%emt 0:00:00]} 4. Nxe4 {[%emt 0:00:00]} Nf6 {[%emt 0:00:30]} 5. Nxf6+ {[%emt 0:01:30]} exf6 {[%emt 0:00:00]} 6. Nf3 {[%emt 0:01:30]} Bd6 {[%emt 0:00:00]} 7. Be2 {[%emt 0:00:30]} O-O {[%emt 0:00:30]} 8. O-O {[%emt 0:00:30]} Re8 {[%emt 0:00:00]} 9. h3 {[%emt 0:00:30] B15: Caro-Kann: 3 Nc3: 3...g6 and 3...dxe4 4 Nxe4 Nf6 5 Nxf6+ exf6.} Nd7 {[%emt 0:01:00][%cal Bb8d7,Bd7f8,Bf8g6,Bg6f4][%mdl 32]} 10. c4 {[%emt 0:00:30]} Nf8 {[%emt 0:00:30]} 11. Be3 {[%emt 0:01:30] The position is equal.} Ng6 {[%emt 0:00:30]} 12. d5 {[%emt 0:00:30] [#]} cxd5 $146 {[%emt 0:00:30]} ({Predecessor:} 12... Nf4 13. Bxf4 Bxf4 14. dxc6 Qxd1 15. Raxd1 bxc6 16. c5 Bxh3 17. Ba6 {½-½ (17) Moraes,N (2185)-Ferreira,P (1897) Belem 2015}) 13. Qxd5 {[%emt 0:02:30]} Nf4 {[%emt 0:05:30]} 14. Bxf4 {[%emt 0:00:30]} Bxf4 {[%emt 0:00:00]} 15. Qxd8 {[%emt 0:00:30]} Rxd8 {[%emt 0:00:00]} 16. Rad1 {[%emt 0:00:30][%cal Rd1d8]} Bf5 {[%emt 0:00:30]} 17. Nd4 {[%emt 0:00:30]} Be4 {[%emt 0:01:30]} 18. Bf3 {[%emt 0:02:30]} Bxf3 {[%emt 0:03:30]} 19. Nxf3 {[%emt 0:00:30]} Kf8 {[%emt 0:00:00]} 20. Rfe1 {[%emt 0:02:30]} Bc7 {[%emt 0:00:00]} 21. Kf1 {[%emt 0:00:30]} Ba5 {[%emt 0:00:30]} 22. Rxd8+ {[%emt 0:00:30]} Rxd8 $11 {[%emt 0:00:00][%mdl 4096] Endgame KRB-KRN} 23. Rc1 {[%emt 0:00:30]} Ke7 {[%emt 0:00:00]} 24. Ke2 {[%emt 0:03:30]} Rd7 {[%emt 0:02:30]} 25. c5 {[%emt 0:01:30]} Rd5 {[%emt 0:04:30]} 26. Rc4 {[%emt 0:03:30]} Bc7 {[%emt 0:01:30]} 27. b4 {[%emt 0:00:30]} b6 {[%emt 0:00:00]} 28. cxb6 {[%emt 0:03:30]} Bxb6 {[%emt 0:00:00]} 29. a4 {[%emt 0:00:00]} Kd7 {[%emt 0:00:30]} 30. a5 {[%emt 0:06:00]} Bc7 {[%emt 0:00:00]} 31. Rd4 {[%emt 0:00:30]} Kc6 {[%emt 0:01:00]} 32. Kd3 {[%emt 0:01:30]} Be5 {[%emt 0:03:30]} 33. Rxd5 {[%emt 0:02:30]} Kxd5 {[%emt 0:00:00] KB-KN} 34. Nd2 {[%emt 0:04:30]} Bd6 {[%emt 0:02:00]} 35. Kc3 {[%emt 0:02:30]} Be5+ {[%emt 0:00:30]} 36. Kb3 $1 {[%emt 0:00:30]} Bd4 {[%emt 0:00:00]} 37. f3 {[%emt 0:00:30]} a6 {[%emt 0:01:00]} (37... f5 $14) 38. Ne4 {[%emt 0:01:30]} ({White should try} 38. g4 $1 $16) 38... Be3 {[%emt 0:05:30] [#]} (38... f5 $1 $14 39. Ng5 Be3 40. Nxh7 (40. Nxf7 Ke6 $11) 40... Bf4) 39. Nc3+ $1 $18 {[%emt 0:04:30]} Kd4 {[%emt 0:00:00]} 40. b5 {[%emt 0:02:30]} axb5 {[%emt 0:00:00]} 41. a6 {[%emt 0:00:30] aiming for a7.} (41. Nxb5+ Kc5 42. Ka4 Kc6 $14) 41... Kd3 $2 {[%emt 0:00:30][%mdl 8192] This costs Black the game.} (41... Ke5 $16) 42. Kb4 {[%emt 0:00:30]} (42. Nxb5 Bc5 43. Ka4 (43. a7 Bxa7 44. Nxa7 Ke3 $11) 43... Kc4 44. Na3+ (44. a7 Bxa7 45. Nxa7 Kd3 $11) 44... Kd5) 42... f5 {[%emt 0:03:30]} 43. Nd5 {[%emt 0:02:30]} Ba7 {[%emt 0:06:30]} 44. Kxb5 {[%emt 0:00:30]} Ke2 {[%emt 0:00:00]} 45. Kc6 {[%emt 0:00:30]} Kf2 {[%emt 0:00:00]} 46. Kb7 {[%emt 0:00:30]} Bd4 {[%emt 0:00:30]} 47. Nb6 {[%emt 0:00:00]} (47. a7 Bxa7 48. Ne7 {[#]} (48. Kxa7 $2 Kxg2 49. Ne7 f4 $19) 48... f4 $1 49. Kxa7 Kxg2 $19) 47... Kxg2 {[%emt 0:00:00]} 48. a7 {[%emt 0:00:00]} Bxb6 {[%emt 0:00:00]} 49. Kxb6 {[%emt 0:00:30] White mates.} Kxf3 {[%emt 0:03:30]} 50. a8=Q+ {[%emt 0:00:00]} Kg3 {[%emt 0:00:00]} 51. Qd5 {[%emt 0:00:00]} f4 {[%emt 0:00:00]} 52. Qg5+ {[%emt 0:00:30] Weighted Error Value: White=0.05 (flawless) /Black=0.33} 1-0

[Event "Marmaris Karya-19 GM-May 2022"]
[Site "Icmeler-Marmaris"]
[Date "2022.05.15"]
[Round "4.2"]
[White "Gholami, Aryan"]
[Black "Gunduz, Umut Erdem"]
[Result "1-0"]
[ECO "B13"]
[WhiteElo "2530"]
[BlackElo "2316"]
[Annotator "TA"]
[PlyCount "63"]
[EventDate "2022.05.15"]
[EventType "schev"]
[EventCountry "TUR"]
[SourceTitle "playchess.com"]
[Source "ChessBase"]
[SourceQuality "1"]
[TimeControl "5400+30"]

{[%evp 9,63,1,7,-9,-8,-20,-7,0,0,0,-4,-2,0,0,0,0,0,0,1,0,0,-11,0,-29,25,44,75,65,132,100,99,0,593,510,483,404,525,524,646,633,614,525,1334,1266,1395,946,1012,454,448,440,425,436,448,440,438,356]} 1. d4 {[%emt 0:01:00]} d5 {[%emt 0:01:00]} 2. Bf4 {[%emt 0:00:30]} c5 {[%emt 0:02:30]} 3. e3 {[%emt 0:01:30]} Nc6 {[%emt 0:00:00]} 4. c3 {[%emt 0:00:30]} cxd4 {[%emt 0:02:00]} 5. exd4 {[%emt 0:00:00]} Bf5 {[%emt 0:00:30]} 6. Qb3 {[%emt 0:03:00] B13: Caro-Kann: Exchange Variation and Panov-Botvinnik Attack.} Qd7 {[%emt 0:01:30]} 7. Nf3 {[%emt 0:01:30]} e6 {[%emt 0:02:30]} 8. Nbd2 {[%emt 0:00:30] The position is equal.} Nge7 {[%emt 0:01:30]} 9. Be2 {[%emt 0:00:30]} Ng6 {[%emt 0:00:30]} 10. Bg3 {[%emt 0:03:30]} h5 {[%emt 0:00:30]} 11. h4 $1 {[%emt 0:01:30] [#]} O-O-O $146 {[%emt 0:10:30]} ({Predecessor:} 11... Bd6 12. Bxd6 Qxd6 13. g3 O-O 14. O-O Bg4 15. Rfe1 Rae8 16. Qd1 e5 17. dxe5 Ngxe5 18. Nxe5 Nxe5 {½-½ (36) Giri,A (2780)-Artemiev,V (2704) chess24.com INT 2021}) 12. O-O {[%emt 0:30:30]} Bd6 {[%emt 0:00:30]} 13. Bxd6 {[%emt 0:00:30]} Qxd6 {[%emt 0:00:30]} 14. Rfe1 {[%emt 0:00:30]} f6 {[%emt 0:03:30]} 15. c4 {[%emt 0:00:30]} Nf4 {[%emt 0:05:30]} 16. Bf1 {[%emt 0:02:30]} g5 {[%emt 0:00:30]} (16... dxc4 $142 17. Nxc4 Qd7) 17. hxg5 $11 {[%emt 0:01:30]} Rdg8 {[%emt 0:07:30]} 18. Rac1 {[%emt 0:00:30]} (18. gxf6 Nh3+ 19. Kh1 Nxf2+ 20. Kg1 Nh3+ 21. Kh1 Nf2+ 22. Kg1 Nh3+ 23. Kh1 Nf2+ $11) 18... h4 {[%emt 0:04:30]} ({Better is} 18... Kb8 $14) 19. cxd5 {[%emt 0:02:30]} (19. gxf6 Nxg2 20. Re5 (20. Bxg2 h3 $17) 20... Nxe5 21. cxd5+ Kb8 22. dxe5 Qxd5 $1 23. Qxd5 (23. Bxg2 $2 Qxb3 24. Nxb3 h3 $19) 23... exd5 $11) 19... exd5 {[%emt 0:00:30] [#]} 20. Qa3 {[%emt 0:02:30]} ({White should try} 20. Qe3 $1 $16) 20... Qc7 $2 {[%emt 0:09:30][%mdl 8192] [#]} (20... Qxa3 $11 21. bxa3 fxg5) 21. Re7 $1 {[%emt 0:04:30][%mdl 512]} Bd7 {[%emt 0:00:00]} 22. Rf7 {[%emt 0:01:30] Black must now prevent b4.} ({Less strong is} 22. Bb5 h3 23. g3 (23. Bxc6 hxg2) 23... h2+ 24. Nxh2 (24. Kh1 Nh3 $16) 24... Rxg5 $18) 22... h3 {[%emt 0:06:00]} 23. g3 {[%emt 0:00:30] White is clearly winning.} h2+ {[%emt 0:02:30]} 24. Kh1 {[%emt 0:03:30]} Nh5 {[%emt 0:04:30]} 25. Bd3 {[%emt 0:03:30] Threatens to win with b4.} ({And not} 25. gxf6 Qxg3 26. Rf8+ (26. Rg7 $2 Qxf2 27. Rxc6+ Bxc6 $19) 26... Rxf8 $11) 25... Nxg3+ {[%emt 0:05:30]} 26. fxg3 {[%emt 0:00:00]} Qxg3 {[%emt 0:00:30]} 27. Qxa7 {[%emt 0:06:00]} Rxg5 {[%emt 0:04:30] [#]} 28. Rxc6+ $1 {[%emt 0:03:30]} Bxc6 $18 {[%emt 0:00:30][%csl Gg5][%cal Rg3g2]} 29. Qa8+ {[%emt 0:00:00]} Qb8 {[%emt 0:00:30]} 30. Qxb8+ {[%emt 0:00:00]} Kxb8 {[%emt 0:00:30]} 31. Nxg5 {[%emt 0:00:00]} fxg5 {[%emt 0:00:00]} 32. Rh7 {[%emt 0:00:00] Weighted Error Value: White=0.49/Black=0.54} 1-0

[Event "Marmaris Karya-19 GM-May 2022"]
[Site "Icmeler-Marmaris"]
[Date "2022.05.15"]
[Round "4.3"]
[White "Sevdimaliyev, Urfan"]
[Black "Ozsakallioglu, Okan"]
[Result "0-1"]
[ECO "D03"]
[WhiteElo "2331"]
[BlackElo "2312"]
[Annotator "TA"]
[PlyCount "136"]
[EventDate "2022.05.15"]
[EventType "schev"]
[EventCountry "TUR"]
[SourceTitle "playchess.com"]
[Source "ChessBase"]
[SourceQuality "1"]
[TimeControl "5400+30"]

{[%evp 9,136,-27,-28,-37,-35,-43,-36,-70,-66,-63,-62,-69,0,-5,6,-87,-82,-90,-76,-73,-77,-89,-56,-66,0,-94,-100,-97,-67,-97,-9,-12,-14,-22,0,-8,0,0,0,0,0,0,0,-10,-8,-8,-12,-11,-8,-12,-13,-24,-23,-21,-24,-24,-8,-8,-7,-14,-13,-14,-14,-14,0,0,0,-9,-11,-11,-10,-27,0,-13,-11,-29,-12,-24,0,0,0,0,0,-32,-32,-32,-32,-53,-32,-127,-127,-121,-114,-378,-372,-298,-8,-11,-14,-52,-21,-62,-69,-69,-81,-132,-64,-1261,-1261,-1183,-1073,-1555,-1023,-1598,-1360,-29960,-29963,-29967,-29968,-29966,-29968,-29947,-1305,-29972,-29973,-29969,-29973,-29966,-8869]} 1. d4 {[%emt 0:05:00]} d5 {[%emt 0:02:00]} 2. Nf3 {[%emt 0:00:30]} Nf6 {[%emt 0:00:30]} 3. Bg5 {[%emt 0:01:30]} Ne4 {[%emt 0:00:30]} 4. Bf4 {[%emt 0:01:30]} c5 {[%emt 0:01:30]} 5. dxc5 {[%emt 0:02:30]} Nc6 {[%emt 0:04:30]} 6. Nbd2 {[%emt 0:01:30] D03: 1 d4 d5 2 Nf3 Nf6 3 Bg5, including Torre Attack with early ...d5.} Nxc5 {[%emt 0:00:00]} 7. e3 {[%emt 0:00:30]} g6 {[%emt 0:03:00]} 8. Be2 {[%emt 0:03:30] Black is slightly better.} Bg7 {[%emt 0:00:30]} 9. c3 {[%emt 0:00:00] [#]} e5 $146 {[%emt 0:00:30]} ({Predecessor:} 9... O-O 10. O-O {½-½ (10) Danner,G (2453)-Horvath,J (2551) Budapest 2001}) 10. Bg3 {[%emt 0:01:00]} Bf5 {[%emt 0:04:30]} (10... a5 $15) 11. O-O $1 $11 {[%emt 0:00:30]} O-O {[%emt 0:05:30]} 12. Nb3 {[%emt 0:05:30]} (12. b4 $11 {keeps the balance.} Nd7 13. Qb3) 12... Ne4 $17 {[%emt 0:01:30]} 13. Nfd2 {[%emt 0:04:30]} Nxg3 {[%emt 0:02:30]} 14. hxg3 {[%emt 0:00:30][%cal Oe3e4]} Qe7 {[%emt 0:00:30]} 15. Bg4 {[%emt 0:04:30]} Bd3 {[%emt 0:00:00]} 16. Be2 {[%emt 0:00:30]} Bf5 {[%emt 0:00:00] Black is much more active. The white rooks are badly placed.} 17. Bg4 $1 {[%emt 0:00:00]} Bxg4 {[%emt 0:01:30]} 18. Qxg4 {[%emt 0:00:00]} h5 {[%emt 0:00:30]} 19. Qe2 {[%emt 0:00:30] [#]} h4 {[%emt 0:00:30]} (19... e4 $1 $17) 20. gxh4 $11 {[%emt 0:00:30]} Qxh4 {[%emt 0:00:30]} 21. e4 {[%emt 0:01:30]} Rad8 {[%emt 0:02:30]} 22. Rad1 {[%emt 0:08:30]} dxe4 {[%emt 0:01:30]} 23. Nxe4 {[%emt 0:06:30]} Rxd1 {[%emt 0:01:30]} 24. Rxd1 {[%emt 0:00:30]} Rd8 {[%emt 0:00:00] Prevents Rd7.} 25. Rd3 {[%emt 0:02:30]} f5 {[%emt 0:02:00]} 26. Nec5 {[%emt 0:11:30]} Qe7 {[%emt 0:01:30]} 27. Rxd8+ {[%emt 0:03:30]} Nxd8 {[%emt 0:00:30][%cal Bc6d8,Bd8e6,Be6f4,Bf4h3][%mdl 32]} 28. Qc4+ {[%emt 0:05:30]} Kh7 {[%emt 0:00:00]} 29. Qd5 {[%emt 0:03:30]} b6 {[%emt 0:00:00]} 30. Na6 {[%emt 0:07:30]} Ne6 {[%emt 0:00:30]} 31. Nb4 {[%emt 0:01:02]} Nf4 {[%emt 0:00:30]} 32. Qf3 {[%emt 0:01:07]} Qd6 {[%emt 0:00:30] Hoping for ...e4.} 33. g3 $1 {[%emt 0:02:48]} Nh3+ {[%emt 0:00:00]} 34. Kg2 {[%emt 0:01:46] [#]} e4 $1 {[%emt 0:01:00]} 35. Qe2 {[%emt 0:00:26]} Ng5 {[%emt 0:02:30]} 36. Qd2 {[%emt 0:00:26]} Qf6 {[%emt 0:02:30]} 37. Nd5 {[%emt 0:01:07]} Qe5 {[%emt 0:00:00]} 38. Qxg5 {[%emt 0:01:38]} Qxd5 {[%emt 0:00:00][%mdl 4096] Endgame KQB-KQN} 39. Qd2 {[%emt 0:00:17]} Qc6 {[%emt 0:00:30]} 40. Kh2 {[%emt 0:00:53]} (40. Qf4 {looks sharper.} e3+ 41. Kf1 Bh6 42. Qh4) 40... Bf6 {[%emt 0:00:30]} 41. Nd4 {[%emt 0:01:27]} Qd5 {[%emt 0:00:30]} 42. Nb3 {[%emt 0:01:54]} Qe6 {[%emt 0:02:30]} 43. Qf4 {[%emt 0:03:29]} g5 {[%emt 0:00:30]} 44. Qc7+ {[%emt 0:00:07]} Kg6 {[%emt 0:00:30]} 45. Nd4 {[%emt 0:01:42]} ({Much weaker is} 45. Qxa7 f4 46. Qa6 Qg4 $15) 45... Qd5 {[%emt 0:01:30]} 46. Qc6 {[%emt 0:03:36]} Qxc6 {[%emt 0:00:00]} 47. Nxc6 $15 {[%emt 0:00:30] KB-KN} a5 {[%emt 0:00:00]} 48. Na7 {[%emt 0:00:36]} Kf7 {[%emt 0:00:30]} 49. g4 {[%emt 0:02:00]} ({Better is} 49. Kg2 $15) 49... Be5+ $17 {[%emt 0:01:30]} ({But not} 49... fxg4 $6 50. Kg3 $11) 50. Kg2 {[%emt 0:00:03]} fxg4 {[%emt 0:00:00]} 51. Nb5 $2 {[%emt 0:00:34][%mdl 8192]} (51. Nc8 $17 {might work better.} Bc7 52. Kf1) 51... Ke6 $19 {[%emt 0:00:00]} 52. Na3 {[%emt 0:00:28]} e3 $2 {[%emt 0:00:30]} ({Black should play} 52... Kd5 $19 {White must now prevent ...Kc5.} 53. Kf1 g3) 53. fxe3 $11 {[%emt 0:00:22]} Kd5 {[%emt 0:00:30] Threatens to win with ...Ke4.} 54. Kf2 {[%emt 0:01:30]} Bd6 {[%emt 0:01:30]} 55. Nc2 {[%emt 0:00:49]} Ke4 {[%emt 0:00:30] ...g3+ is the strong threat.} 56. Nd4 {[%emt 0:00:43]} g3+ {[%emt 0:00:00]} 57. Kg2 {[%emt 0:00:38] [#]} Be5 {[%emt 0:00:00]} (57... Bc7 $1 $17 58. Ne6 Bd6) 58. a4 $2 {[%emt 0:00:36][%mdl 8192]} (58. Nc6 $15) 58... Kxe3 $19 {[%emt 0:00:30]} 59. Nc6 {[%emt 0:00:19]} Bc7 {[%emt 0:00:30]} 60. Ne7 {[%emt 0:00:46]} Ke4 {[%emt 0:00:30]} 61. b4 {[%emt 0:00:34]} Ke5 {[%emt 0:01:30] Strongly threatening ...Ke6.} 62. bxa5 {[%emt 0:01:11]} bxa5 {[%emt 0:00:30]} 63. Kf3 {[%emt 0:00:14]} Ke6 {[%emt 0:00:00]} 64. Nc6 {[%emt 0:00:18]} Kd5 {[%emt 0:00:00]} 65. Nd4 {[%emt 0:00:53]} Kc4 {[%emt 0:00:30]} (65... Be5 $142 66. Ne2 Kc4 67. Ke4 Bxc3 68. Nxg3 Kb4 69. Ne2 Bd2 70. Kd5 Bf4 71. Kd4 Kxa4 72. Ke4 Kb3 73. Nd4+ Kc4 74. Nc2 Kc3 75. Na3 Kb3 76. Nb5 Kb4 77. Nd4 Kc4 78. Nc2 Kc3 79. Na3 Kb3 80. Nb5 Kb4 81. Nd4 Kc4) 66. Ne6 {[%emt 0:00:14]} Bf4 {[%emt 0:00:00] Black mates.} 67. Nd8 {[%emt 0:00:23]} Kxc3 {[%emt 0:01:00]} 68. Nc6 {[%emt 0:00:02]} Bc7 {[%emt 0:00:30] Weighted Error Value: White=0.37/Black=0.23 (precise)} 0-1

[Event "Marmaris Karya-19 GM-May 2022"]
[Site "Icmeler-Marmaris"]
[Date "2022.05.15"]
[Round "4.4"]
[White "Benidze, Davit"]
[Black "Darban, Morteza"]
[Result "1/2-1/2"]
[ECO "D20"]
[WhiteElo "2425"]
[BlackElo "2279"]
[Annotator "TA"]
[PlyCount "28"]
[EventDate "2022.05.15"]
[EventType "schev"]
[EventCountry "TUR"]
[SourceTitle "playchess.com"]
[Source "ChessBase"]
[SourceQuality "1"]
[TimeControl "5400+30"]

{[%evp 26,28,0,0,0]} 1. d4 {[%emt 0:01:00]} d5 {[%emt 0:01:00]} 2. c4 {[%emt 0:00:30]} dxc4 {[%emt 0:00:30]} 3. e4 {[%emt 0:00:30][%cal Be2e4,Be4e5][%mdl 32]} Nf6 {[%emt 0:00:00]} 4. e5 {[%emt 0:02:30]} Nd5 {[%emt 0:00:00]} 5. Bxc4 {[%emt 0:00:30]} Nc6 {[%emt 0:00:00]} 6. Nf3 {[%emt 0:00:00]} Nb6 {[%emt 0:00:00]} 7. Bb3 {[%emt 0:00:00]} Bg4 {[%emt 0:00:00]} 8. Ng5 {[%emt 0:00:30]} Bxd1 {[%emt 0:00:00]} 9. Bxf7+ {[%emt 0:00:00]} Kd7 {[%emt 0:00:30]} 10. Be6+ {[%emt 0:00:00]} Ke8 {[%emt 0:00:00]} 11. Bf7+ {[%emt 0:00:00]} Kd7 {[%emt 0:00:00]} 12. Be6+ {[%emt 0:00:00]} Ke8 {[%emt 0:00:00]} 13. Bf7+ {[%emt 0:00:30]} Kd7 {[%emt 0:00:00]} 14. Be6+ {[%emt 0:00:30]} Ke8 {[%emt 0:00:30] A balanced but interesting game. D20: Queen's Gambit Accepted: 3 e3 and 3 e4.} 1/2-1/2

[Event "Marmaris Karya-19 GM-May 2022"]
[Site "Icmeler-Marmaris"]
[Date "2022.05.15"]
[Round "4.5"]
[White "Toufighi, Homayoon"]
[Black "Ozdemir, Serhan Berat"]
[Result "1/2-1/2"]
[ECO "A00"]
[WhiteElo "2439"]
[BlackElo "2117"]
[Annotator "TA"]
[PlyCount "35"]
[EventDate "2022.05.15"]
[EventType "schev"]
[EventCountry "TUR"]
[SourceTitle "playchess.com"]
[Source "ChessBase"]
[SourceQuality "1"]
[TimeControl "5400+30"]

{[%evp 9,35,0,0,-11,-6,-20,-14,-9,-14,-12,-10,-32,-31,-37,-4,-28,-4,-37,-6,-12,0,-41,0,-13,0,-33,0,-15]} 1. g3 {[%emt 0:11:00]} g6 {[%emt 0:01:00]} 2. Bg2 {[%emt 0:00:30]} Bg7 {[%emt 0:00:00]} 3. e4 {[%emt 0:00:30]} c5 {[%emt 0:01:00]} 4. h4 {[%emt 0:00:00]} h5 {[%emt 0:01:30]} 5. Nc3 {[%emt 0:03:00]} Nc6 {[%emt 0:01:30]} 6. d3 {[%emt 0:00:30] A00: Irregular Openings.} d6 {[%emt 0:00:00]} 7. Nh3 {[%emt 0:00:30]} e6 {[%emt 0:06:00]} 8. O-O {[%emt 0:00:30]} Nge7 {[%emt 0:00:00]} 9. Be3 {[%emt 0:00:30] [#]} Rb8 $146 {[%emt 0:02:00]} ({Predecessor:} 9... Nd4 10. Qd2 Nec6 11. Nd1 e5 12. f3 O-O 13. c3 Ne6 14. f4 exf4 15. gxf4 f5 16. exf5 Rxf5 {1-0 (50) Coll Frances,J-Gutierrez Masdeu,J Tarragona 1994}) 10. Rb1 {[%emt 0:03:30]} b5 {[%emt 0:01:30]} 11. Ne2 {[%emt 0:06:30]} e5 {[%emt 0:03:30]} 12. f4 {[%emt 0:03:30]} Bg4 {[%emt 0:06:30]} 13. Qd2 {[%emt 0:02:30]} O-O {[%emt 0:00:30]} 14. Nf2 {[%emt 0:00:00]} Be6 {[%emt 0:00:00]} 15. Nh3 {[%emt 0:00:00]} Bg4 {[%emt 0:00:00]} 16. Nf2 {[%emt 0:00:00]} Be6 {[%emt 0:00:30]} 17. Nh3 {[%emt 0:00:00][%cal Of4f5]} Bg4 {[%emt 0:00:00]} 18. Nf2 {[%emt 0:00:30] Weighted Error Value: White=0.14 (very precise) /Black=0.15 (very precise)} 1/2-1/2

[Event "Marmaris Karya-19 GM-May 2022"]
[Site "Icmeler-Marmaris"]
[Date "2022.05.15"]
[Round "5.1"]
[White "Caglar, Sila"]
[Black "Gholami, Aryan"]
[Result "0-1"]
[ECO "B22"]
[WhiteElo "2133"]
[BlackElo "2530"]
[Annotator "TA"]
[PlyCount "60"]
[EventDate "2022.05.15"]
[EventType "schev"]
[EventCountry "TUR"]
[SourceTitle "playchess.com"]
[Source "ChessBase"]
[SourceQuality "1"]
[TimeControl "5400+30"]

{[%evp 16,60,15,26,34,0,-7,-6,0,0,0,-3,-4,-14,0,-16,0,-12,48,0,18,-64,0,0,0,0,0,-98,-129,-257,-257,-521,-506,-514,-514,-534,-529,-561,-486,-710,-671,-691,-667,-475,-677,-798,-748]} 1. e4 {[%emt 0:12:00]} c5 {[%emt 0:02:00]} 2. c3 {[%emt 0:00:30]} Nf6 {[%emt 0:00:30]} 3. e5 {[%emt 0:00:00]} Nd5 {[%emt 0:00:00]} 4. Nf3 {[%emt 0:00:00]} e6 {[%emt 0:00:00]} 5. d4 {[%emt 0:00:30]} cxd4 {[%emt 0:00:30]} 6. cxd4 {[%emt 0:00:00]} d6 {[%emt 0:00:00]} 7. Bc4 {[%emt 0:00:00]} Nb6 {[%emt 0:00:00]} 8. Bb3 {[%emt 0:01:30]} dxe5 {[%emt 0:00:00]} 9. Nxe5 {[%emt 0:00:30]} Nc6 {[%emt 0:00:00] B22: Sicilian: 2 c3.} 10. Qf3 {[%emt 0:08:30][%csl Ge5][%cal Rf3f7]} Bb4+ {[%emt 0:05:30]} 11. Nc3 {[%emt 0:00:30][%csl Ge5][%cal Rf3f7]} O-O {[%emt 0:00:30] The position is equal.} (11... Qxd4 $2 12. Qxf7+ Kd8 13. Nxc6+ bxc6 14. Bg5+ Qf6 15. Bxf6+ $18) 12. Nxc6 {[%emt 0:00:00]} bxc6 {[%emt 0:00:00]} 13. O-O $132 {[%emt 0:02:00][%mdl 2048] White is not holding back} Qxd4 {[%emt 0:06:00] [#]} 14. Be3 $146 {[%emt 0:06:30]} ({Predecessor:} 14. Rd1 Qh4 15. Ne4 e5 16. Bg5 Qg4 17. a3 Qxf3 18. gxf3 Ba5 19. Rac1 Nd5 20. Rxc6 {0-1 (32) Mamedov,R (2709)-Harikrishna,P (2744) Huaian 2017}) 14... Qe5 {[%emt 0:01:30]} 15. Rfe1 {[%emt 0:04:30] Bxb6 is the strong threat.} Qc7 {[%emt 0:03:30]} 16. Rac1 {[%emt 0:07:30]} Ba6 {[%emt 0:10:30]} (16... Bd6 $11) 17. Bf4 {[%emt 0:06:30]} (17. Bd4 $14) 17... Qb7 {[%emt 0:03:30]} 18. Ne4 {[%emt 0:16:30]} Nd5 {[%emt 0:04:30]} (18... Bxe1 $15 19. Rxe1 Nd5) 19. Bxd5 $11 {[%emt 0:00:30]} cxd5 {[%emt 0:00:30]} 20. Nf6+ {[%emt 0:00:30]} Kh8 {[%emt 0:00:00]} (20... gxf6 21. Bh6) 21. Qh5 {[%emt 0:02:30] [#]} Bd3 $1 $17 {[%emt 0:02:00]} (21... gxf6 $6 22. Rc7 Qb6 23. Qh6 $11) 22. Re3 {[%emt 0:03:30] [#]} (22. Rc7 $17 Qb5 23. Rec1) 22... Bg6 $1 $19 {[%emt 0:02:30] This bishop pair is nice.} ({Less strong is} 22... gxf6 23. Rxd3 d4 24. Rxd4 $14 (24. Rh3 Qe4 $11)) 23. Qh4 {[%emt 0:00:00]} (23. Qe5 Rfc8 24. Rxc8+ Qxc8 25. h4) 23... Be7 {[%emt 0:00:30] Black is clearly winning.} (23... gxf6 $2 {leads to mate.} 24. Qxf6+ Kg8 25. Be5 h6 26. Qh8#) 24. Be5 {[%emt 0:00:00]} Rac8 {[%emt 0:01:30]} 25. Rce1 {[%emt 0:00:30]} Rc4 {[%emt 0:01:30] Prevents Qf4.} 26. f4 {[%emt 0:01:30]} Qb6 {[%emt 0:01:30]} 27. Kh1 {[%emt 0:01:30]} (27. Nxd5 $142 Bxh4 28. Nxb6 axb6 29. b3) 27... Bxf6 {[%emt 0:00:30]} 28. Bxf6 {[%emt 0:00:30]} gxf6 {[%emt 0:00:00]} 29. Qxf6+ {[%emt 0:00:00]} Kg8 {[%emt 0:00:00][%cal Ob6e3] Strongly threatening ...Qxe3!} 30. Rg3 {[%emt 0:01:00]} Qf2 {[%emt 0:00:30][%csl LRe1,LRf4] Weighted Error Value: White=0.54/Black=0.15 (very precise)} 0-1